[Event "Early-Titled-Tuesday-Blitz-March-12-2024"]
[Site "Chess.com"]
[Date "2024.03.12"]
[Round "7"]
[White "AccioChess"]
[Black "Kotlyar_K"]
[Result "1-0"]
[WhiteElo "2429"]
[BlackElo "2578"]
[TimeControl "180+1"]
[EndTime "9:16:27 PDT"]
[Termination "AccioChess won by checkmate"]

1. Nf3 {[%clk 0:02:54.6]} 1... Nf6 {[%clk 0:02:58.8]} 2. g3 {[%clk 0:02:53.4]}
2... e6 {[%clk 0:02:58.5]} 3. Bg2 {[%clk 0:02:53.3]} 3... Be7 {[%clk 0:02:58.8]}
4. O-O {[%clk 0:02:54.2]} 4... O-O {[%clk 0:02:59]} 5. b3 {[%clk 0:02:54.7]}
5... d5 {[%clk 0:02:58.8]} 6. Bb2 {[%clk 0:02:55.6]} 6... b5 {[%clk 0:02:59]} 7.
c4 {[%clk 0:02:56.3]} 7... bxc4 {[%clk 0:02:59.1]} 8. bxc4 {[%clk 0:02:57.2]}
8... Bb7 {[%clk 0:02:59.2]} 9. cxd5 {[%clk 0:02:56.7]} 9... Bxd5 {[%clk
0:02:57.1]} 10. Nc3 {[%clk 0:02:55.9]} 10... c6 {[%clk 0:02:50.4]} 11. d3 {[%clk
0:02:54.5]} 11... c5 {[%clk 0:02:40.9]} 12. Rc1 {[%clk 0:02:49.2]} 12... Nbd7
{[%clk 0:02:39.5]} 13. Nxd5 {[%clk 0:02:47.2]} 13... exd5 {[%clk 0:02:40.4]} 14.
Ne5 {[%clk 0:02:44]} 14... Qb8 {[%clk 0:02:07.3]} 15. Nxd7 {[%clk 0:02:37]}
15... Nxd7 {[%clk 0:02:03.9]} 16. Ba1 {[%clk 0:02:27.1]} 16... Qd6 {[%clk
0:02:00.3]} 17. e4 {[%clk 0:02:18.8]} 17... d4 {[%clk 0:01:36.5]} 18. f4 {[%clk
0:02:12.4]} 18... Rab8 {[%clk 0:01:34.2]} 19. e5 {[%clk 0:02:12.5]} 19... Qa6
{[%clk 0:01:31.8]} 20. Qc2 {[%clk 0:02:10.5]} 20... Nb6 {[%clk 0:01:23.4]} 21.
Rce1 {[%clk 0:01:59.8]} 21... Qa4 {[%clk 0:01:18.1]} 22. Qd2 {[%clk 0:01:55.8]}
22... a5 {[%clk 0:00:41.4]} 23. f5 {[%clk 0:01:51.9]} 23... Qb4 {[%clk
0:00:36.1]} 24. Qf4 {[%clk 0:01:42.3]} 24... f6 {[%clk 0:00:36]} 25. e6 {[%clk
0:01:34.6]} 25... Na4 {[%clk 0:00:26.7]} 26. Qc7 {[%clk 0:01:26.1]} 26... Rfe8
{[%clk 0:00:18.5]} 27. Bc6 {[%clk 0:01:05.3]} 27... Rbc8 {[%clk 0:00:06.8]} 28.
Qd7 {[%clk 0:01:04.5]} 28... Nb6 {[%clk 0:00:05.4]} 29. Qb7 {[%clk 0:00:48.4]}
29... Rb8 {[%clk 0:00:03.3]} 30. Qa7 {[%clk 0:00:42.9]} 30... c4 {[%clk
0:00:02.4]} 31. Bxe8 {[%clk 0:00:40]} 31... Rxe8 {[%clk 0:00:03.3]} 32. Rb1
{[%clk 0:00:38.1]} 32... Qd2 {[%clk 0:00:02.5]} 33. Qxb6 {[%clk 0:00:35.9]}
33... Qxd3 {[%clk 0:00:01.6]} 34. Qc6 {[%clk 0:00:32.4]} 34... Qe3+ {[%clk
0:00:01.5]} 35. Kh1 {[%clk 0:00:31.8]} 35... Rd8 {[%clk 0:00:01.4]} 36. Rbe1
{[%clk 0:00:21.8]} 36... Qd3 {[%clk 0:00:01.8]} 37. Rd1 {[%clk 0:00:21.8]} 37...
Qe3 {[%clk 0:00:02.1]} 38. Rfe1 {[%clk 0:00:21.8]} 38... Qg5 {[%clk 0:00:01.4]}
39. Rxd4 {[%clk 0:00:19.3]} 39... Qxf5 {[%clk 0:00:01.9]} 40. Rxd8+ {[%clk
0:00:18.7]} 40... Bxd8 {[%clk 0:00:02.8]} 41. Qe8# {[%clk 0:00:18.9]} 1-0

[Event "Early-Titled-Tuesday-Blitz-March-12-2024"]
[Site "Chess.com"]
[Date "2024.03.12"]
[Round "7"]
[White "Semen_Khanin"]
[Black "ChessLover0108"]
[Result "1-0"]
[WhiteElo "2902"]
[BlackElo "2940"]
[TimeControl "180+1"]
[EndTime "9:16:28 PDT"]
[Termination "Semen_Khanin won on time"]

1. e4 {[%clk 0:03:00.9]} 1... c5 {[%clk 0:02:58.4]} 2. Nf3 {[%clk 0:03:00.5]}
2... d6 {[%clk 0:02:58.7]} 3. Bb5+ {[%clk 0:03:00.2]} 3... Bd7 {[%clk
0:02:58.7]} 4. Bxd7+ {[%clk 0:03:00.4]} 4... Nxd7 {[%clk 0:02:59.3]} 5. c3
{[%clk 0:02:59.2]} 5... Ngf6 {[%clk 0:02:53.8]} 6. Qe2 {[%clk 0:02:59.3]} 6...
e6 {[%clk 0:02:53.3]} 7. O-O {[%clk 0:02:59.3]} 7... Be7 {[%clk 0:02:53.8]} 8.
d4 {[%clk 0:02:59.7]} 8... O-O {[%clk 0:02:54.5]} 9. Rd1 {[%clk 0:02:59.7]} 9...
Rc8 {[%clk 0:02:51.2]} 10. Bg5 {[%clk 0:02:56.5]} 10... cxd4 {[%clk 0:02:40]}
11. cxd4 {[%clk 0:02:55.4]} 11... d5 {[%clk 0:02:40.5]} 12. e5 {[%clk
0:02:50.1]} 12... Ne4 {[%clk 0:02:40.9]} 13. Bxe7 {[%clk 0:02:34.9]} 13... Qxe7
{[%clk 0:02:41.8]} 14. Ne1 {[%clk 0:02:27.7]} 14... f5 {[%clk 0:02:22.2]} 15.
exf6 {[%clk 0:02:22.1]} 15... Qxf6 {[%clk 0:02:17.3]} 16. f3 {[%clk 0:02:20.6]}
16... Nd6 {[%clk 0:02:17.2]} 17. Nc3 {[%clk 0:02:20.5]} 17... Nf5 {[%clk
0:02:05.2]} 18. Nc2 {[%clk 0:02:20.1]} 18... Nb6 {[%clk 0:02:03.2]} 19. Qf2
{[%clk 0:01:59.9]} 19... Nc4 {[%clk 0:01:57.5]} 20. Rab1 {[%clk 0:01:51.1]}
20... Rf7 {[%clk 0:01:55.8]} 21. Ne2 {[%clk 0:01:40.9]} 21... Rfc7 {[%clk
0:01:53]} 22. b3 {[%clk 0:01:38.4]} 22... Nb2 {[%clk 0:01:31.7]} 23. Rxb2 {[%clk
0:01:36.9]} 23... Rxc2 {[%clk 0:01:32.4]} 24. Rxc2 {[%clk 0:01:28.3]} 24... Rxc2
{[%clk 0:01:33.3]} 25. a4 {[%clk 0:01:23.2]} 25... h6 {[%clk 0:01:21.8]} 26. Qe1
{[%clk 0:00:59.9]} 26... Qg5 {[%clk 0:01:07.2]} 27. Ng3 {[%clk 0:00:54.9]} 27...
Nh4 {[%clk 0:00:30.2]} 28. Qxe6+ {[%clk 0:00:52]} 28... Kh7 {[%clk 0:00:30.8]}
29. Kh1 {[%clk 0:00:40.9]} 29... Rxg2 {[%clk 0:00:31.3]} 30. Rf1 {[%clk
0:00:24.8]} 30... Qd2 {[%clk 0:00:29.9]} 31. Qh3 {[%clk 0:00:23.4]} 31... Ng6
{[%clk 0:00:25.5]} 32. Qxg2 {[%clk 0:00:22.4]} 32... Qxd4 {[%clk 0:00:24.3]} 33.
f4 {[%clk 0:00:16.7]} 33... Nh4 {[%clk 0:00:19.5]} 34. Qc2+ {[%clk 0:00:15.9]}
34... Kg8 {[%clk 0:00:18.2]} 35. Qe2 {[%clk 0:00:15.2]} 35... Qc3 {[%clk
0:00:16.6]} 36. f5 {[%clk 0:00:14.1]} 36... d4 {[%clk 0:00:11.6]} 37. Qe4 {[%clk
0:00:12.2]} 1-0

[Event "Early-Titled-Tuesday-Blitz-March-12-2024"]
[Site "Chess.com"]
[Date "2024.03.12"]
[Round "7"]
[White "HanSchut"]
[Black "Rosh1610"]
[Result "1-0"]
[WhiteElo "2334"]
[BlackElo "2456"]
[TimeControl "180+1"]
[EndTime "9:16:29 PDT"]
[Termination "HanSchut won by checkmate"]

1. e4 {[%clk 0:03:00.3]} 1... e5 {[%clk 0:02:56.7]} 2. Nf3 {[%clk 0:02:58.4]}
2... Nc6 {[%clk 0:02:56.8]} 3. Bc4 {[%clk 0:02:58.9]} 3... Nf6 {[%clk
0:02:56.3]} 4. d4 {[%clk 0:02:59]} 4... exd4 {[%clk 0:02:52.8]} 5. e5 {[%clk
0:02:59.9]} 5... d5 {[%clk 0:02:52.7]} 6. Bb5 {[%clk 0:03:00.3]} 6... Ne4 {[%clk
0:02:52.8]} 7. Nxd4 {[%clk 0:02:59.6]} 7... Bd7 {[%clk 0:02:53.4]} 8. Bxc6
{[%clk 0:02:59.5]} 8... bxc6 {[%clk 0:02:53.4]} 9. O-O {[%clk 0:03:00]} 9... Bc5
{[%clk 0:02:50.4]} 10. f3 {[%clk 0:02:57.5]} 10... Ng5 {[%clk 0:02:49.8]} 11.
Be3 {[%clk 0:02:58.2]} 11... Ne6 {[%clk 0:02:49.5]} 12. c3 {[%clk 0:02:56.4]}
12... Bxd4 {[%clk 0:02:48.4]} 13. cxd4 {[%clk 0:02:56.1]} 13... O-O {[%clk
0:02:48.6]} 14. f4 {[%clk 0:02:56.3]} 14... f5 {[%clk 0:02:49.2]} 15. Nc3 {[%clk
0:02:51.1]} 15... a5 {[%clk 0:02:46.1]} 16. Na4 {[%clk 0:02:48.3]} 16... Bc8
{[%clk 0:02:45.3]} 17. Rc1 {[%clk 0:02:43.4]} 17... Ba6 {[%clk 0:02:41.2]} 18.
Rf2 {[%clk 0:02:42.4]} 18... Qd7 {[%clk 0:02:34.4]} 19. b3 {[%clk 0:02:39.1]}
19... Bb5 {[%clk 0:02:29.7]} 20. Nc5 {[%clk 0:02:36.5]} 20... Nxc5 {[%clk
0:02:29.5]} 21. Rxc5 {[%clk 0:02:37.4]} 21... a4 {[%clk 0:02:29.9]} 22. b4
{[%clk 0:02:14.1]} 22... Qe6 {[%clk 0:02:25.1]} 23. a3 {[%clk 0:02:12.2]} 23...
Bc4 {[%clk 0:02:22.4]} 24. h3 {[%clk 0:02:07.4]} 24... Rf7 {[%clk 0:02:20.5]}
25. Kh2 {[%clk 0:02:07.4]} 25... Bb5 {[%clk 0:02:20.3]} 26. Rf3 {[%clk
0:02:04.8]} 26... g6 {[%clk 0:02:21.2]} 27. Bf2 {[%clk 0:02:03.2]} 27... Re8
{[%clk 0:02:15.9]} 28. Bh4 {[%clk 0:02:02.8]} 28... h5 {[%clk 0:02:12.8]} 29.
Bf6 {[%clk 0:02:02.5]} 29... Kh7 {[%clk 0:02:13.3]} 30. Rg3 {[%clk 0:01:58.9]}
30... Rxf6 {[%clk 0:02:02.9]} 31. exf6 {[%clk 0:01:59.8]} 31... Qxf6 {[%clk
0:02:03.8]} 32. Rcc3 {[%clk 0:01:57.4]} 32... Re4 {[%clk 0:02:03.6]} 33. Rce3
{[%clk 0:01:49]} 33... Rxd4 {[%clk 0:02:01.1]} 34. Re7+ {[%clk 0:01:47.6]} 34...
Kh6 {[%clk 0:01:51.9]} 35. Re6 {[%clk 0:01:41.7]} 35... Qxe6 {[%clk 0:01:27.2]}
36. Qxd4 {[%clk 0:01:41.4]} 36... Kh7 {[%clk 0:01:21.8]} 37. Re3 {[%clk
0:01:22.4]} 37... Qf7 {[%clk 0:01:21.8]} 38. Qc5 {[%clk 0:01:15.4]} 38... Kh6
{[%clk 0:01:13.9]} 39. Re7 {[%clk 0:01:10.3]} 39... Qf6 {[%clk 0:00:18]} 40.
Rxc7 {[%clk 0:01:09.1]} 40... h4 {[%clk 0:00:17.3]} 41. Qa7 {[%clk 0:00:50.5]}
41... g5 {[%clk 0:00:15.2]} 42. Rf7 {[%clk 0:00:41.6]} 42... Qg6 {[%clk
0:00:05]} 43. Qe7 {[%clk 0:00:36.8]} 43... Kh5 {[%clk 0:00:01.6]} 44. Rh7+
{[%clk 0:00:33.9]} 44... Qxh7 {[%clk 0:00:01.4]} 45. Qxh7# {[%clk 0:00:34.8]}
1-0

[Event "Early-Titled-Tuesday-Blitz-March-12-2024"]
[Site "Chess.com"]
[Date "2024.03.12"]
[Round "7"]
[White "wonderfultime"]
[Black "TigrVShlyape"]
[Result "1-0"]
[WhiteElo "3067"]
[BlackElo "2917"]
[TimeControl "180+1"]
[EndTime "9:16:34 PDT"]
[Termination "wonderfultime won on time"]

1. d4 {[%clk 0:02:42.3]} 1... f5 {[%clk 0:02:52.5]} 2. e4 {[%clk 0:02:42.1]}
2... fxe4 {[%clk 0:02:50.4]} 3. Nc3 {[%clk 0:02:42.7]} 3... Nf6 {[%clk
0:02:48.8]} 4. Bg5 {[%clk 0:02:43.1]} 4... g6 {[%clk 0:02:47.2]} 5. f3 {[%clk
0:02:39.1]} 5... d5 {[%clk 0:02:36.2]} 6. fxe4 {[%clk 0:02:36.6]} 6... Nxe4
{[%clk 0:02:33.2]} 7. Nxe4 {[%clk 0:02:35.9]} 7... dxe4 {[%clk 0:02:33.3]} 8.
Bc4 {[%clk 0:02:36.4]} 8... Qd6 {[%clk 0:02:32.1]} 9. Qd2 {[%clk 0:02:30.4]}
9... Bg7 {[%clk 0:02:24.5]} 10. Ne2 {[%clk 0:02:26.4]} 10... Be6 {[%clk
0:02:06.8]} 11. Bxe6 {[%clk 0:01:28.8]} 11... Qxe6 {[%clk 0:02:05.5]} 12. O-O
{[%clk 0:01:29.7]} 12... Nd7 {[%clk 0:02:03.4]} 13. Nf4 {[%clk 0:01:14.7]} 13...
Qd6 {[%clk 0:01:46.5]} 14. d5 {[%clk 0:01:15.1]} 14... Nf8 {[%clk 0:01:08]} 15.
Qe2 {[%clk 0:01:14.1]} 15... h6 {[%clk 0:00:52.8]} 16. Bh4 {[%clk 0:01:07.1]}
16... O-O-O {[%clk 0:00:43.6]} 17. Bg3 {[%clk 0:00:57.4]} 17... Qb6+ {[%clk
0:00:36.5]} 18. Kh1 {[%clk 0:00:57.4]} 18... g5 {[%clk 0:00:35.7]} 19. Nh5
{[%clk 0:00:56.3]} 19... Bf6 {[%clk 0:00:22.3]} 20. Qxe4 {[%clk 0:00:54.8]}
20... Nd7 {[%clk 0:00:22.6]} 21. c4 {[%clk 0:00:47.3]} 21... Kb8 {[%clk
0:00:18.7]} 22. Rab1 {[%clk 0:00:44.4]} 22... a5 {[%clk 0:00:18.3]} 23. b3
{[%clk 0:00:35.8]} 23... Nc5 {[%clk 0:00:14.4]} 24. Qe3 {[%clk 0:00:34.8]} 24...
Ka8 {[%clk 0:00:10]} 25. a3 {[%clk 0:00:31.8]} 25... Nd7 {[%clk 0:00:09.6]} 26.
Qe2 {[%clk 0:00:27.6]} 26... Rhe8 {[%clk 0:00:08.7]} 27. b4 {[%clk 0:00:28.1]}
27... Bd4 {[%clk 0:00:07.9]} 28. c5 {[%clk 0:00:26.9]} 28... Qg6 {[%clk
0:00:07.4]} 29. c6 {[%clk 0:00:26.2]} 29... Nb8 {[%clk 0:00:06.3]} 30. bxa5
{[%clk 0:00:23.9]} 30... Rxd5 {[%clk 0:00:04.2]} 31. Bxc7 {[%clk 0:00:12.9]}
31... Qxc6 {[%clk 0:00:03]} 32. Bb6 {[%clk 0:00:10.4]} 32... Nd7 {[%clk
0:00:02.5]} 33. Bxd4 {[%clk 0:00:09.1]} 33... Rxd4 {[%clk 0:00:02.8]} 34. Ng7
{[%clk 0:00:09.4]} 34... Rc8 {[%clk 0:00:02]} 35. Nf5 {[%clk 0:00:09.7]} 35...
Re4 {[%clk 0:00:02.1]} 36. Qb2 {[%clk 0:00:08.7]} 36... Nc5 {[%clk 0:00:01.4]}
37. Rfc1 {[%clk 0:00:08]} 1-0

[Event "Early-Titled-Tuesday-Blitz-March-12-2024"]
[Site "Chess.com"]
[Date "2024.03.12"]
[Round "7"]
[White "Hovik_Hayrapetyan"]
[Black "david_gomez"]
[Result "1-0"]
[WhiteElo "2842"]
[BlackElo "2627"]
[TimeControl "180+1"]
[EndTime "9:16:34 PDT"]
[Termination "Hovik_Hayrapetyan won on time"]

1. d4 {[%clk 0:03:00.9]} 1... d5 {[%clk 0:02:55.2]} 2. c4 {[%clk 0:03:00.9]}
2... e6 {[%clk 0:02:53]} 3. Nc3 {[%clk 0:03:00.1]} 3... c5 {[%clk 0:02:51.7]} 4.
cxd5 {[%clk 0:02:57.5]} 4... exd5 {[%clk 0:02:49.9]} 5. dxc5 {[%clk 0:02:43.7]}
5... d4 {[%clk 0:02:49.7]} 6. Na4 {[%clk 0:02:41.9]} 6... b5 {[%clk 0:02:47.8]}
7. cxb6 {[%clk 0:02:34.3]} 7... axb6 {[%clk 0:02:47]} 8. e4 {[%clk 0:02:10.7]}
8... Nf6 {[%clk 0:02:32.3]} 9. f3 {[%clk 0:01:51.7]} 9... Bb4+ {[%clk 0:01:53]}
10. Kf2 {[%clk 0:01:45.3]} 10... Bd7 {[%clk 0:01:43.1]} 11. b3 {[%clk
0:01:41.3]} 11... O-O {[%clk 0:01:37.9]} 12. Bd3 {[%clk 0:01:33.7]} 12... Nc6
{[%clk 0:01:29.7]} 13. Bd2 {[%clk 0:01:25.3]} 13... Ba3 {[%clk 0:01:19.8]} 14.
Bc1 {[%clk 0:01:14.8]} 14... Bb4 {[%clk 0:01:19.1]} 15. Ne2 {[%clk 0:01:07.5]}
15... Ne5 {[%clk 0:01:17.5]} 16. Nb2 {[%clk 0:00:53.1]} 16... Qc7 {[%clk
0:01:14.7]} 17. Bf4 {[%clk 0:00:49.7]} 17... Nh5 {[%clk 0:01:11.9]} 18. Rc1
{[%clk 0:00:44.5]} 18... Qb8 {[%clk 0:01:05.1]} 19. Bxe5 {[%clk 0:00:43]} 19...
Qxe5 {[%clk 0:01:06]} 20. Nc4 {[%clk 0:00:43.5]} 20... Qf6 {[%clk 0:01:04.5]}
21. a4 {[%clk 0:00:43.7]} 21... b5 {[%clk 0:00:52.2]} 22. axb5 {[%clk
0:00:37.8]} 22... Bxb5 {[%clk 0:00:52.4]} 23. e5 {[%clk 0:00:22.2]} 23... Qg5
{[%clk 0:00:45]} 24. h4 {[%clk 0:00:21.4]} 24... Qe7 {[%clk 0:00:44.4]} 25. g4
{[%clk 0:00:20.6]} 25... Bxc4 {[%clk 0:00:37.8]} 26. Rxc4 {[%clk 0:00:21.5]}
26... Bc5 {[%clk 0:00:29.3]} 27. gxh5 {[%clk 0:00:21]} 27... Qxe5 {[%clk
0:00:29.9]} 28. Qd2 {[%clk 0:00:18.8]} 28... Rfe8 {[%clk 0:00:26.7]} 29. Qg5
{[%clk 0:00:17.4]} 29... f5 {[%clk 0:00:23.6]} 30. Rg1 {[%clk 0:00:09.8]} 30...
Ra2 {[%clk 0:00:21.6]} 31. Rxc5 {[%clk 0:00:04]} 31... Rxe2+ {[%clk 0:00:06.2]}
32. Bxe2 {[%clk 0:00:04.9]} 32... Qxe2+ {[%clk 0:00:06.4]} 33. Kg3 {[%clk
0:00:05.6]} 33... Re3 {[%clk 0:00:01.7]} 34. Qxf5 {[%clk 0:00:04.8]} 1-0

[Event "Early-Titled-Tuesday-Blitz-March-12-2024"]
[Site "Chess.com"]
[Date "2024.03.12"]
[Round "7"]
[White "javierfreilemartin"]
[Black "Allion2017"]
[Result "1/2-1/2"]
[WhiteElo "2248"]
[BlackElo "2303"]
[TimeControl "180+1"]
[EndTime "9:16:37 PDT"]
[Termination "Game drawn by repetition"]

1. c4 {[%clk 0:02:44.1]} 1... Nf6 {[%clk 0:01:44.2]} 2. Nc3 {[%clk 0:02:43.1]}
2... e6 {[%clk 0:01:44.7]} 3. e4 {[%clk 0:02:41.9]} 3... d5 {[%clk 0:01:44.8]}
4. e5 {[%clk 0:02:41.4]} 4... d4 {[%clk 0:01:45]} 5. exf6 {[%clk 0:02:40.8]}
5... dxc3 {[%clk 0:01:45.6]} 6. bxc3 {[%clk 0:02:40.7]} 6... Qxf6 {[%clk
0:01:45.5]} 7. Nf3 {[%clk 0:02:41]} 7... c5 {[%clk 0:01:45.6]} 8. Bd3 {[%clk
0:02:39.9]} 8... Nc6 {[%clk 0:01:42.2]} 9. O-O {[%clk 0:02:38.2]} 9... Bd6
{[%clk 0:01:41.6]} 10. Be4 {[%clk 0:02:34.2]} 10... Bd7 {[%clk 0:01:39]} 11. Rb1
{[%clk 0:02:31.8]} 11... b6 {[%clk 0:01:36.2]} 12. d4 {[%clk 0:02:31.7]} 12...
h6 {[%clk 0:01:34.4]} 13. dxc5 {[%clk 0:02:20.5]} 13... Bxc5 {[%clk 0:01:24.4]}
14. Nd4 {[%clk 0:02:19]} 14... Rc8 {[%clk 0:01:12.5]} 15. Nxc6 {[%clk
0:02:10.8]} 15... Bxc6 {[%clk 0:01:12.4]} 16. Bxc6+ {[%clk 0:02:11]} 16... Rxc6
{[%clk 0:01:11.5]} 17. Qa4 {[%clk 0:02:10.4]} 17... e5 {[%clk 0:01:07.8]} 18.
Be3 {[%clk 0:01:51.1]} 18... O-O {[%clk 0:01:07.8]} 19. Bxc5 {[%clk 0:01:48.9]}
19... bxc5 {[%clk 0:01:08.3]} 20. Qxa7 {[%clk 0:01:48.6]} 20... Qf4 {[%clk
0:00:53.5]} 21. Rb8 {[%clk 0:01:34.8]} 21... Rxb8 {[%clk 0:00:47]} 22. Qxb8+
{[%clk 0:01:34.6]} 22... Kh7 {[%clk 0:00:47.3]} 23. Qb5 {[%clk 0:01:32.7]} 23...
Rc8 {[%clk 0:00:41.8]} 24. Qd7 {[%clk 0:01:24.3]} 24... Ra8 {[%clk 0:00:39.4]}
25. Qd5 {[%clk 0:01:23.5]} 25... Rxa2 {[%clk 0:00:33.7]} 26. Qxc5 {[%clk
0:01:23.7]} 26... Rc2 {[%clk 0:00:30.7]} 27. Qd5 {[%clk 0:01:14.2]} 27... Rxc3
{[%clk 0:00:29.1]} 28. Rd1 {[%clk 0:01:08.2]} 28... Rxc4 {[%clk 0:00:27.1]} 29.
g3 {[%clk 0:01:06]} 29... Qe4 {[%clk 0:00:26.3]} 30. Qxf7 {[%clk 0:01:05.7]}
30... Rc2 {[%clk 0:00:21.9]} 31. Rd7 {[%clk 0:00:57.6]} 31... Qe1+ {[%clk
0:00:16.9]} 32. Kg2 {[%clk 0:00:57.5]} 32... Qe4+ {[%clk 0:00:17.4]} 33. Kh3
{[%clk 0:00:57.3]} 33... Qg6 {[%clk 0:00:15.4]} 34. Qxg6+ {[%clk 0:00:49.3]}
34... Kxg6 {[%clk 0:00:15.6]} 35. f3 {[%clk 0:00:49.6]} 35... Rf2 {[%clk
0:00:13.1]} 36. Kg4 {[%clk 0:00:49.2]} 36... h5+ {[%clk 0:00:12.3]} 37. Kh4
{[%clk 0:00:49.2]} 37... Rxf3 {[%clk 0:00:12.9]} 38. Rd6+ {[%clk 0:00:49]} 38...
Rf6 {[%clk 0:00:13.4]} 39. Rd5 {[%clk 0:00:47.9]} 39... Re6 {[%clk 0:00:13.5]}
40. h3 {[%clk 0:00:46.6]} 40... e4 {[%clk 0:00:13.4]} 41. Rg5+ {[%clk
0:00:45.8]} 41... Kf7 {[%clk 0:00:12.4]} 42. Rb5 {[%clk 0:00:37.9]} 42... e3
{[%clk 0:00:11.6]} 43. Rb1 {[%clk 0:00:31.9]} 43... e2 {[%clk 0:00:12.1]} 44.
Re1 {[%clk 0:00:30.7]} 44... g6 {[%clk 0:00:13]} 45. g4 {[%clk 0:00:30.9]} 45...
hxg4 {[%clk 0:00:12.2]} 46. hxg4 {[%clk 0:00:31.1]} 46... Kf6 {[%clk 0:00:13]}
47. Kg3 {[%clk 0:00:30.7]} 47... g5 {[%clk 0:00:12]} 48. Kf3 {[%clk 0:00:30.4]}
48... Re5 {[%clk 0:00:09.9]} 49. Rxe2 {[%clk 0:00:30.6]} 49... Rxe2 {[%clk
0:00:10.5]} 50. Kxe2 {[%clk 0:00:30.9]} 50... Ke5 {[%clk 0:00:10.8]} 51. Ke3
{[%clk 0:00:31.1]} 51... Kd5 {[%clk 0:00:11.4]} 52. Kd3 {[%clk 0:00:31.5]} 52...
Ke5 {[%clk 0:00:12.1]} 53. Ke3 {[%clk 0:00:31.8]} 53... Kd5 {[%clk 0:00:12.9]}
54. Kd3 {[%clk 0:00:32.3]} 54... Ke5 {[%clk 0:00:13.5]} 55. Ke3 {[%clk
0:00:32.7]} 1/2-1/2

[Event "Early-Titled-Tuesday-Blitz-March-12-2024"]
[Site "Chess.com"]
[Date "2024.03.12"]
[Round "7"]
[White "ilqar_74"]
[Black "Triumphmate"]
[Result "1-0"]
[WhiteElo "2841"]
[BlackElo "2518"]
[TimeControl "180+1"]
[EndTime "9:16:38 PDT"]
[Termination "ilqar_74 won by resignation"]

1. e4 {[%clk 0:03:00.9]} 1... d5 {[%clk 0:02:59.9]} 2. exd5 {[%clk 0:03:00.6]}
2... Nf6 {[%clk 0:02:58.9]} 3. d4 {[%clk 0:03:00]} 3... Bg4 {[%clk 0:02:58.6]}
4. Bb5+ {[%clk 0:02:59.7]} 4... c6 {[%clk 0:02:58.2]} 5. dxc6 {[%clk 0:02:50.2]}
5... Nxc6 {[%clk 0:02:59.1]} 6. Nf3 {[%clk 0:02:43.6]} 6... e6 {[%clk
0:02:57.4]} 7. c3 {[%clk 0:02:41.9]} 7... Be7 {[%clk 0:02:57.2]} 8. Be2 {[%clk
0:02:42.4]} 8... O-O {[%clk 0:02:57.2]} 9. O-O {[%clk 0:02:42.5]} 9... Rc8
{[%clk 0:02:55.5]} 10. h3 {[%clk 0:02:42.9]} 10... Bh5 {[%clk 0:02:55.6]} 11.
Bg5 {[%clk 0:02:41.4]} 11... h6 {[%clk 0:02:53.3]} 12. Bh4 {[%clk 0:02:40.5]}
12... Nd5 {[%clk 0:02:51.9]} 13. Bxe7 {[%clk 0:02:40.3]} 13... Ncxe7 {[%clk
0:02:51.6]} 14. Nbd2 {[%clk 0:02:40.3]} 14... Nf4 {[%clk 0:02:49.9]} 15. Re1
{[%clk 0:02:37.2]} 15... Qb6 {[%clk 0:02:48.3]} 16. Qb3 {[%clk 0:02:35.9]} 16...
Nxe2+ {[%clk 0:02:43.6]} 17. Rxe2 {[%clk 0:02:36.8]} 17... Qa6 {[%clk
0:02:43.8]} 18. Re5 {[%clk 0:02:32.7]} 18... Bxf3 {[%clk 0:02:38.4]} 19. Nxf3
{[%clk 0:02:33.6]} 19... Rfd8 {[%clk 0:02:38.9]} 20. Qb5 {[%clk 0:02:31.7]}
20... Qd6 {[%clk 0:02:18.6]} 21. a4 {[%clk 0:02:22.7]} 21... a6 {[%clk 0:02:12]}
22. Qb3 {[%clk 0:02:18]} 22... Nc6 {[%clk 0:02:08.6]} 23. Ree1 {[%clk
0:02:17.4]} 23... Na5 {[%clk 0:02:06.9]} 24. Qd1 {[%clk 0:02:17.7]} 24... Nc4
{[%clk 0:02:05.9]} 25. Qe2 {[%clk 0:02:15.1]} 25... b5 {[%clk 0:01:54.2]} 26.
axb5 {[%clk 0:02:14.8]} 26... axb5 {[%clk 0:01:55.1]} 27. Ne5 {[%clk 0:02:13]}
27... Rc7 {[%clk 0:01:33.6]} 28. Nxc4 {[%clk 0:02:12.1]} 28... bxc4 {[%clk
0:01:32.7]} 29. Ra4 {[%clk 0:02:11.7]} 29... Qc6 {[%clk 0:01:28.9]} 30. Rb4
{[%clk 0:02:04]} 30... Ra8 {[%clk 0:01:27.2]} 31. Qe4 {[%clk 0:02:03.4]} 31...
Ra1 {[%clk 0:01:23.7]} 32. Qe2 {[%clk 0:02:02.1]} 32... Rca7 {[%clk 0:01:10.2]}
33. Rxa1 {[%clk 0:01:47.6]} 33... Rxa1+ {[%clk 0:01:11.1]} 34. Kh2 {[%clk
0:01:48.3]} 34... f6 {[%clk 0:00:13.9]} 35. Rxc4 {[%clk 0:01:41.9]} 35... Qd6+
{[%clk 0:00:14.3]} 36. g3 {[%clk 0:01:42]} 36... Qd5 {[%clk 0:00:14.5]} 37. f3
{[%clk 0:01:42.1]} 37... Qf5 {[%clk 0:00:08.7]} 38. Rc8+ {[%clk 0:01:39.1]}
38... Kh7 {[%clk 0:00:09.3]} 39. Qe4 {[%clk 0:01:38]} 39... Rb1 {[%clk
0:00:08.5]} 40. Qxf5+ {[%clk 0:01:37.9]} 40... exf5 {[%clk 0:00:09.4]} 41. Rb8
{[%clk 0:01:38.1]} 41... Rc1 {[%clk 0:00:09.8]} 42. h4 {[%clk 0:01:32.3]} 42...
f4 {[%clk 0:00:10.7]} 43. gxf4 {[%clk 0:01:32.1]} 43... Kg6 {[%clk 0:00:11.3]}
44. Rb7 {[%clk 0:01:32.2]} 44... Kf5 {[%clk 0:00:11.2]} 45. Kg3 {[%clk
0:01:30.8]} 45... Rg1+ {[%clk 0:00:10.6]} 46. Kf2 {[%clk 0:01:31.1]} 46... Rb1
{[%clk 0:00:11.5]} 47. Rxg7 {[%clk 0:01:27.9]} 47... h5 {[%clk 0:00:11.5]} 48.
Re7 {[%clk 0:01:07.8]} 48... Kxf4 {[%clk 0:00:09.7]} 49. Re4+ {[%clk 0:01:07]}
49... Kf5 {[%clk 0:00:10.3]} 50. Re2 {[%clk 0:01:07.6]} 50... Kf4 {[%clk
0:00:10.1]} 51. d5 {[%clk 0:01:06.5]} 51... Rd1 {[%clk 0:00:08.6]} 52. Re4+
{[%clk 0:01:06.4]} 52... Kf5 {[%clk 0:00:08.6]} 53. Rd4 {[%clk 0:01:06.9]} 53...
Rh1 {[%clk 0:00:06.9]} 54. d6 {[%clk 0:01:07]} 54... Rh2+ {[%clk 0:00:05.3]} 55.
Kg3 {[%clk 0:01:05.2]} 55... Rxb2 {[%clk 0:00:04.5]} 56. d7 {[%clk 0:01:05.4]}
1-0